bitfinex/quotes_SOLUSD_20241107
["timestamp","ask_amount","ask_price","bid_price","bid_amount"]
[1731004313445,17.97912651,195.55,195.5,5.32045453]
[1731004313614,3.01256136,195.54,195.5,3.32045453]
[1731004313820,3.01256136,195.53,195.5,3.32045453]
[1731004314035,17.97912651,195.6,195.46,20.0]
[1731004314036,17.97912651,195.51,195.46,20.0]
[1731004314236,17.97912651,195.52,195.46,37.97912651]
[1731004314517,0.1,195.57,195.47,17.97912651]
[1731004314518,17.97912651,195.53,195.47,17.97912651]
[1731004314842,3.01151035,195.52,195.47,17.97912651]
[1731004315049,3.01151035,195.51,195.42,1.57630194]
[1731004315217,17.97912651,195.51,195.45,17.97912651]
[1731004315418,0.12549,195.48,195.4,5.32403913]
[1731004315719,18.10461651,195.48,195.38,15.6453]
[1731004315915,18.10461651,195.48,195.42,17.97912651]
[1731004316117,3.01112592,195.47,195.42,17.97912651]
[1731004316317,0.12549,195.48,195.42,17.97912651]
[1731004316530,3.010382,195.47,195.43,17.97912651]
[1731004316744,3.010382,195.46,195.38,15.6453]
[1731004316922,17.97912651,195.5,195.44,17.97912651]
[1731004317119,7.82733245,195.49,195.44,17.97912651]
[1731004317316,7.82733245,195.48,195.43,17.97912651]
[1731004317526,3.01051248,195.47,195.42,17.97912651]
[1731004317844,17.97912651,195.49,195.42,17.97912651]
[1731004317845,3.01051248,195.46,195.43,20.0]
[1731004318024,17.97912651,195.49,195.43,20.0]
[1731004318025,3.01051248,195.45,195.43,20.0]
[1731004318338,17.97912651,195.52,195.45,20.0]
[1731004318539,7.8222087,195.51,195.47,17.97912651]
[1731004318746,3.00854181,195.5,195.47,17.97912651]
[1731004319118,3.00854181,195.5,195.45,20.0]
[1731004319119,17.97912651,195.55,195.49,17.97912651]
[1731004319316,7.81939486,195.54,195.49,17.97912651]
[1731004319520,3.00745956,195.53,195.49,17.97912651]
[1731004319727,3.00745956,195.52,195.49,17.97912651]
[1731004319946,3.00745956,195.51,195.49,17.97912651]
[1731004320143,17.97912651,195.56,195.5,17.97912651]
[1731004320337,7.81941469,195.55,195.51,17.97912651]
[1731004320528,7.81941469,195.54,195.51,17.97912651]
[1731004320842,7.81941469,195.54,195.41,21.69276413]
[1731004320843,7.81941469,195.53,195.5,17.97912651]
[1731004321145,3.00746719,195.52,195.49,17.97912651]
[1731004321525,3.00865926,195.51,195.49,17.97912651]
[1731004321722,3.00865926,195.5,195.49,17.97912651]
[1731004322340,16.2663,195.57,195.49,17.97912651]
[1731004322545,7.94683382,195.56,195.52,17.97912651]
[1731004322846,7.94683382,195.56,195.51,17.97912651]
[1731004322847,7.82134382,195.55,195.51,17.97912651]
[1731004323033,7.82134382,195.54,195.51,17.97912651]
[1731004323230,3.00820916,195.53,195.45,6.446]
[1731004323434,3.00820916,195.52,195.46,20.0]
[1731004323636,3.00820916,195.51,195.46,20.0]
[1731004323951,16.2663,195.57,195.46,20.0]
[1731004324128,6.0568,195.59,195.46,20.0]
[1731004324129,7.82218175,195.56,195.52,17.97912651]
[1731004324440,24.03592651,195.59,195.52,17.97912651]
[1731004324441,7.82218175,195.55,195.52,17.97912651]
[1731004324640,5.72218175,195.54,195.53,43.902374]
[1731004324846,15.9616,195.71,195.56,20.0]
[1731004324847,17.97912651,195.7,195.56,20.0]
[1731004325020,9.77462096,195.69,195.58,20.0]
[1731004325223,21.73859611,195.68,195.61,17.97912651]
[1731004325533,8.57249735,195.67,195.59,17.97912651]
[1731004325726,0.12549,195.63,195.56,20.0]
[1731004325929,4.81302775,195.62,195.58,17.97912651]
[1731004326544,4.81302775,195.62,195.59,17.97912651]
[1731004326739,4.81302775,195.61,195.59,17.97912651]
[1731004326923,4.81302775,195.6,195.59,17.97912651]
[1731004327119,4.81302775,195.6,195.56,20.0]
[1731004327324,180.87912651,195.68,195.56,20.0]
[1731004327626,26.6848642,195.67,195.6,17.97912651]
[1731004327946,8.58024769,195.66,195.61,17.97912651]
[1731004328141,4.81709758,195.65,195.61,17.97912651]
[1731004328441,4.81709758,195.64,195.62,17.97912651]
[1731004328644,4.81709758,195.68,195.62,17.97912651]
[1731004328958,4.81709758,195.68,195.57,0.19986764]
[1731004329126,4.81709758,195.68,195.67,17.97912651]
[1731004329521,4.81709758,195.68,195.66,17.97912651]
[1731004329743,4.81975256,195.67,195.63,15.8277]
[1731004330025,169.5566,195.77,195.63,15.8277]
[1731004330026,24.63572651,195.77,195.67,20.0]
[1731004330224,10.8409786,195.76,195.71,17.97912651]
[1731004330452,4.81864275,195.75,195.71,17.97912651]
[1731004330640,4.81864275,195.74,195.71,17.97912651]
[1731004330851,178.3926,195.81,195.64,23.97675164]
[1731004330852,4.81864275,195.73,195.65,20.0]
[1731004331153,4.81864275,195.73,195.69,20.0]
[1731004331347,4.81864275,195.72,195.69,20.0]
[1731004331524,22.79776926,195.79,195.69,20.0]
[1731004331731,22.79998908,195.78,195.69,20.0]
[1731004331928,4.82086257,195.77,195.73,17.97912651]
[1731004332229,22.79990497,195.77,195.71,17.97912651]
[1731004332430,4.82077846,195.76,195.71,17.97912651]
[1731004332622,4.82077846,195.75,195.71,17.97912651]
[1731004332825,4.82077846,195.74,195.71,17.97912651]
[1731004333127,15.5926,195.81,195.65,0.19986764]
[1731004333128,4.82077846,195.76,195.72,17.97912651]
[1731004333335,4.82077846,195.75,195.72,17.97912651]
[1731004333542,4.82077846,195.74,195.72,17.97912651]
[1731004333752,4.82077846,195.73,195.65,0.19986764]
[1731004334051,4.82077846,195.72,195.71,17.97912651]
[1731004334259,22.79990497,195.76,195.7,17.97912651]
[1731004334455,0.1,195.8,195.71,17.97912651]
[1731004334456,4.82077846,195.75,195.71,17.97912651]
[1731004334656,4.82077846,195.74,195.7,17.97912651]
[1731004334841,4.82077846,195.73,195.7,17.97912651]
[1731004335047,4.82077846,195.72,195.7,17.97912651]
[1731004335258,4.82077846,195.71,195.7,17.97912651]
[1731004335551,0.12549,195.76,195.7,17.97912651]
[1731004335739,0.12549,195.76,195.71,17.97912651]
[1731004335941,4.82758547,195.75,195.71,17.97912651]
[1731004336359,4.82758547,195.74,195.71,17.97912651]
[1731004336536,4.82758547,195.73,195.71,17.97912651]
[1731004336850,0.12549,195.76,195.71,17.97912651]
[1731004336851,7.84668793,195.72,195.71,17.97912651]
[1731004337052,7.84668793,195.72,195.7,17.97912651]
[1731004337234,7.84668793,195.71,195.7,17.97912651]
[1731004340945,7.84668793,195.71,195.68,17.97912651]
[1731004341161,7.84668793,195.71,195.63,15.8277]
[1731004341162,7.84668793,195.7,195.65,17.97912651]
[1731004341462,7.84668793,195.7,195.62,6.6571]
[1731004341463,7.84668793,195.69,195.64,17.97912651]
[1731004341762,7.84668793,195.68,195.64,17.97912651]
[1731004342053,7.84668793,195.67,195.64,17.97912651]
[1731004342256,7.84668793,195.66,195.64,17.97912651]
[1731004342666,7.84668793,195.65,195.64,17.97912651]
[1731004344436,7.84668793,195.65,195.63,17.97912651]
[1731004344637,7.84668793,195.64,195.63,17.97912651]
[1731004345247,3.01910246,195.64,195.63,17.97912651]
[1731004345943,0.12549,195.69,195.63,17.97912651]
[1731004346142,7.87220198,195.68,195.64,17.97912651]
[1731004346446,7.87220198,195.67,195.64,17.97912651]
[1731004346634,7.87220198,195.66,195.65,17.97912651]
[1731004346838,7.87220198,195.66,195.65,37.97912651]
[1731004347155,34.64392651,195.78,195.66,20.0]
[1731004347475,34.64392651,195.78,195.72,17.97912651]
[1731004347642,34.64392651,195.78,195.73,17.97912651]
[1731004348049,34.64392651,195.78,195.72,17.97912651]
[1731004348557,17.97912651,195.78,195.72,17.97912651]
[1731004348877,17.97912651,195.77,195.71,17.97912651]
[1731004349468,17.97912651,195.76,195.7,17.97912651]
[1731004349638,17.97912651,195.73,195.67,17.97912651]
[1731004349838,17.97912651,195.72,195.66,37.97912651]
[1731004353637,17.97912651,195.72,195.61,8.17302078]
[1731004353638,17.97912651,195.69,195.61,6.6234]
[1731004353841,17.97912651,195.69,195.63,17.97912651]
[1731004354050,0.12549,195.69,195.64,17.97912651]
[1731004354251,17.97912651,195.71,195.65,17.97912651]
[1731004354460,17.97912651,195.73,195.67,17.97912651]
[1731004354846,163.0,195.79,195.69,17.97912651]
[1731004354847,17.97912651,195.75,195.69,17.97912651]
[1731004355064,17.97912651,195.76,195.7,17.97912651]
[1731004355263,17.97912651,195.77,195.71,17.97912651]
[1731004355779,0.12549,195.76,195.71,17.97912651]
[1731004356065,18.10461651,195.76,195.7,17.97912651]
[1731004357546,162.9,195.78,195.75,17.97912651]
[1731004357743,17.97912651,195.78,195.73,17.97912651]
[1731004357938,0.12549,195.79,195.64,15.78606764]
[1731004358158,0.12549,195.77,195.65,20.0]
[1731004359061,0.12549,195.75,195.65,20.0]
[1731004359268,3.02432464,195.74,195.66,0.19986764]
[1731004359465,162.9,195.77,195.69,20.0]
[1731004359672,0.12549,195.81,195.76,17.97912651]
[1731004359839,0.12549,195.79,195.69,20.0]
[1731004360045,0.1,195.83,195.69,20.0]
[1731004360046,3.02424088,195.78,195.69,20.0]
[1731004360347,3.02424088,195.77,195.69,20.0]
[1731004360548,3.02424088,195.76,195.74,17.97912651]
[1731004360769,3.02424088,195.75,195.74,17.97912651]
[1731004362965,3.02424088,195.75,195.73,17.97912651]
[1731004363163,17.97912651,195.8,195.74,17.97912651]
[1731004363364,0.12549,195.79,195.74,17.97912651]
[1731004363555,3.03072255,195.78,195.71,43.776884]
[1731004363755,3.03072255,195.77,195.73,20.0]
[1731004363965,3.03072255,195.76,195.73,20.0]
[1731004364281,3.03072255,195.75,195.73,20.0]
[1731004364468,162.9,195.85,195.73,20.0]
[1731004364469,162.9,195.85,195.75,20.0]
[1731004364771,15.247,195.89,195.73,20.0]
[1731004364772,3.03180413,195.84,195.82,17.97912651]
[1731004364970,3.03180413,195.83,195.82,17.97912651]
[1731004366052,3.03180413,195.83,195.82,37.97912651]
[1731004366761,180.87912651,195.89,195.82,37.97912651]
[1731004366955,3.03006073,195.83,195.82,20.0]
[1731004367161,3.03006073,195.88,195.78,23.776884]
[1731004367497,3.03006073,195.87,195.79,20.0]
[1731004367780,162.9,195.9,195.79,20.0]
[1731004367781,3.03006073,195.86,195.85,17.97912651]
[1731004368065,3.03006073,195.86,195.85,37.97912651]
[1731004368570,3.03006073,195.86,195.82,17.97912651]
[1731004368779,3.03006073,195.85,195.83,20.0]
[1731004368974,3.03006073,195.84,195.83,37.97912651]
[1731004369187,3.03006073,195.84,195.8,6.5931]
[1731004369492,0.1,195.72,195.7,5.31750959]
[1731004369773,21.00918724,195.71,195.63,17.97912651]
[1731004369981,3.13006073,195.71,195.65,5.32073158]
[1731004370278,3.03006073,195.7,195.65,5.32073158]
[1731004370446,3.03006073,195.69,195.65,5.32073158]
[1731004370649,17.97912651,195.72,195.65,5.32073158]
[1731004370650,3.03006073,195.68,195.65,5.32073158]
[1731004370880,3.03006073,195.67,195.65,5.32073158]
[1731004371063,0.1,195.7,195.65,5.32073158]
[1731004371280,3.03450117,195.69,195.66,20.0]
[1731004371458,3.03450117,195.68,195.66,20.0]
[1731004371659,18.07912651,195.77,195.68,20.0]
[1731004371863,3.13534325,195.76,195.69,17.97912651]
[1731004372082,0.12549,195.81,195.69,17.97912651]
[1731004372083,3.13534325,195.75,195.69,17.97912651]
[1731004372291,3.03534325,195.74,195.69,17.97912651]
[1731004372582,0.1,195.86,195.69,17.97912651]
[1731004372583,17.97912651,195.85,195.74,43.902374]
[1731004372784,17.97912651,195.85,195.79,20.0]
[1731004372963,18.07912651,195.85,195.79,20.0]
[1731004373168,17.97912651,195.84,195.76,17.97912651]
[1731004373459,17.97912651,195.86,195.79,20.0]
[1731004373680,17.97912651,195.89,195.82,17.97912651]
[1731004373860,17.97912651,195.89,195.83,20.0]
[1731004374066,0.6708712,195.91,195.83,20.0]
[1731004374067,17.97912651,195.87,195.83,20.0]
[1731004374260,17.97912651,195.88,195.8,17.97912651]
[1731004374469,17.97912651,195.88,195.82,20.0]
[1731004375075,17.97912651,195.89,195.83,20.0]
[1731004375274,28.74222182,195.89,195.83,20.0]
[1731004375496,28.74222182,195.9,195.83,20.0]
[1731004375791,28.74222182,195.89,195.82,20.12549]
[1731004377888,28.74222182,195.88,195.82,20.12549]
[1731004378481,28.74222182,195.89,195.82,20.12549]
[1731004378986,28.74222182,195.88,195.82,20.12549]
[1731004379188,28.74222182,195.88,195.82,20.0]
[1731004379362,28.74222182,195.83,195.78,6.2623]
[1731004379568,28.74222182,195.82,195.78,6.2623]
[1731004379967,28.74222182,195.84,195.78,6.2623]
[1731004380493,0.5708712,195.91,195.79,0.12549]
[1731004380692,0.5708712,195.91,195.88,28.74222182]
[1731004380896,0.5708712,195.91,195.89,8.56107352]
[1731004381268,0.5708712,195.91,195.9,28.74222182]
[1731004381468,0.5708712,195.91,195.9,37.42878534]
[1731004381684,0.1,196.07,195.91,24.002374]
[1731004381989,28.74222182,196.05,195.99,28.74222182]
[1731004382195,0.1,196.06,195.99,8.56107352]
[1731004382514,0.5708712,196.11,195.97,0.1]
[1731004382688,0.5708712,196.11,196.02,28.74222182]
[1731004382889,28.74222182,196.08,196.01,28.74222182]
[1731004383083,28.74222182,196.06,196.0,28.74222182]
[1731004383400,28.74222182,196.07,196.0,28.74222182]
[1731004383775,28.74222182,196.05,195.99,28.74222182]
[1731004384079,28.74222182,196.05,195.98,37.30329534]
[1731004384284,0.5708712,196.11,196.04,28.74222182]
[1731004384591,0.5708712,196.11,196.05,37.42878534]
[1731004384885,29.31309302,196.11,196.05,37.42878534]
[1731004385089,0.5708712,196.11,196.06,28.74222182]
[1731004385292,0.5708712,196.11,196.05,8.68656352]
[1731004385293,0.5708712,196.11,196.09,28.74222182]
[1731004385671,0.5708712,196.11,196.08,28.86771182]
[1731004386392,0.5708712,196.11,196.08,28.96771182]
[1731004386579,0.5708712,196.11,196.1,0.12549]
[1731004387083,0.5708712,196.11,196.1,87.52369661]
[1731004387273,0.1,196.26,196.13,0.1]
[1731004387476,28.74222182,196.24,196.17,28.74222182]
[1731004387676,28.74222182,196.22,196.15,28.84222182]
[1731004387885,28.74222182,196.22,196.16,28.86771182]
[1731004388077,9.04076778,196.27,196.21,28.74222182]
[1731004388390,28.74222182,196.25,196.19,0.1]
[1731004388593,28.74222182,196.24,196.18,28.74222182]
[1731004388794,28.84222182,196.24,196.18,28.74222182]
[1731004389093,28.74222182,196.24,196.18,28.74222182]
[1731004389397,28.74222182,196.25,196.19,28.74222182]
[1731004389778,28.84222182,196.25,196.18,28.74222182]
[1731004390079,28.74222182,196.23,196.17,45.10952182]
[1731004390281,28.74222182,196.22,196.11,0.1]
[1731004390475,9.04076778,196.27,196.19,28.74222182]
[1731004390684,9.04076778,196.27,196.17,0.1]
[1731004390875,9.04076778,196.27,196.16,0.12549]
[1731004391273,9.04076778,196.27,196.17,0.22549]
[1731004391596,9.04076778,196.27,196.2,0.22549]
[1731004391891,9.04076778,196.27,196.25,28.74222182]
[1731004392190,0.5708712,196.3,196.24,28.74222182]
[1731004392393,0.5708712,196.3,196.23,22.497]
[1731004392600,0.5708712,196.3,196.29,28.74222182]
[1731004392894,0.5708712,196.3,196.28,28.74222182]
[1731004393266,0.5708712,196.3,196.23,22.397]
[1731004393669,0.5708712,196.3,196.29,87.39820661]
[1731004393875,0.5708712,196.3,196.29,87.52369661]
[1731004394095,25.60138244,196.51,196.31,0.1]
[1731004394371,6.4622,196.52,196.31,0.1]
[1731004394372,28.74222182,196.41,196.34,28.74222182]
[1731004395089,23.776884,196.39,196.34,28.74222182]
[1731004395294,28.74222182,196.41,196.35,28.74222182]
[1731004395295,23.776884,196.41,196.35,28.74222182]
[1731004395478,28.74222182,196.39,196.32,28.74222182]
[1731004395682,28.74222182,196.42,196.36,28.74222182]
[1731004395879,34.04852832,196.5,196.31,58.55598479]
[1731004395880,28.74222182,196.41,196.34,28.74222182]
[1731004396292,28.24222182,196.39,196.32,28.74222182]
[1731004396472,28.74222182,196.4,196.34,28.74222182]
[1731004396802,28.74222182,196.35,196.29,28.74222182]
[1731004397097,28.74222182,196.37,196.31,28.74222182]
[1731004397291,28.74222182,196.37,196.3,28.74222182]
[1731004397603,28.74222182,196.34,196.27,28.74222182]
[1731004397770,20.0,196.31,196.26,28.74222182]
[1731004397970,28.74222182,196.4,196.26,28.74222182]
[1731004397971,43.776884,196.28,196.27,28.74222182]
[1731004398171,43.776884,196.28,196.27,28.86771182]
[1731004398380,43.776884,196.27,196.24,28.74222182]
[1731004398570,28.74222182,196.31,196.24,28.74222182]
[1731004398571,43.776884,196.25,196.24,28.74222182]
[1731004398795,43.776884,196.25,196.23,22.497]
[1731004398796,43.776884,196.25,196.23,51.13922182]
[1731004399127,43.776884,196.24,196.19,28.74222182]
[1731004399272,23.776884,196.2,196.19,28.74222182]
[1731004399468,43.776884,196.19,196.18,28.74222182]
[1731004399666,43.776884,196.18,196.17,22.96359]
[1731004399891,43.776884,196.18,196.17,51.58032182]
[1731004400111,43.776884,196.18,196.17,22.8381]
[1731004400297,43.776884,196.18,196.17,16.5503]
[1731004400789,43.776884,196.18,196.14,28.74222182]
[1731004400997,43.776884,196.16,196.14,28.74222182]
[1731004401301,23.776884,196.16,196.15,38.38472647]
[1731004401502,6.6187,196.4,196.19,0.1]
[1731004401713,28.74222182,196.34,196.27,28.74222182]
[1731004402190,25.43978082,196.39,196.25,0.22549]
[1731004402386,25.43978082,196.39,196.25,0.12549]
[1731004402895,61.07896468,196.4,196.23,58.65598479]
[1731004403082,28.74222182,196.31,196.24,28.86771182]
[1731004403286,35.36092182,196.4,196.28,28.74222182]
[1731004403287,28.74222182,196.35,196.28,28.74222182]
[1731004403485,28.74222182,196.3,196.25,6.0648]
[1731004403685,28.74222182,196.28,196.22,0.12549]
[1731004404003,28.74222182,196.28,196.21,28.74222182]
[1731004404004,20.0,196.27,196.21,28.74222182]
[1731004404183,35.36092182,196.4,196.17,75.41778479]
[1731004404184,20.0,196.22,196.17,28.74222182]
[1731004404602,20.0,196.22,196.2,28.74222182]
[1731004404884,20.0,196.22,196.19,58.65598479]
[1731004404885,20.0,196.24,196.21,0.12549]
[1731004405085,23.776884,196.21,196.15,38.38472647]
[1731004405291,48.74222182,196.2,196.15,9.64250465]
[1731004405680,20.0,196.2,196.16,0.12549]
[1731004406124,20.0,196.2,196.15,9.64250465]
[1731004406405,28.74222182,196.3,196.1,15.4682]
[1731004406406,20.0,196.13,196.1,28.74222182]
[1731004406603,20.0,196.13,196.07,58.55598479]
[1731004406604,20.0,196.13,196.11,28.74222182]
[1731004406823,20.0,196.13,196.12,87.29820661]
[1731004407028,20.0,196.13,196.08,58.55598479]
[1731004407300,23.776884,196.08,196.01,35.89018781]
[1731004407517,20.0,196.05,196.01,7.14796599]
[1731004408408,20.0,196.03,196.01,7.14796599]
[1731004408711,23.776884,196.04,196.01,7.14796599]
[1731004408922,20.0,196.03,196.01,7.14796599]
[1731004409625,90.41710219,196.02,196.01,7.14796599]
[1731004409799,20.0,195.99,195.92,6.0681]
[1731004409997,23.776884,195.98,195.92,6.0681]
[1731004410200,20.0,195.97,195.92,6.0681]
[1731004410399,20.0,195.97,195.96,58.55598479]
[1731004410821,20.0,195.97,195.96,58.68147479]
[1731004411002,20.0,195.97,195.93,58.55598479]
[1731004411210,20.0,196.0,195.97,58.55598479]
[1731004411415,20.0,196.0,195.95,58.75598479]
[1731004411712,43.776884,196.03,195.98,0.12549]
[1731004411897,46.64021819,196.06,195.98,0.12549]
[1731004412098,23.776884,196.05,195.98,0.12549]
[1731004412302,70.41710219,196.05,195.98,0.12549]
[1731004412549,46.64021819,196.04,195.96,0.12549]
[1731004412697,46.64021819,196.03,195.96,0.12549]
[1731004412903,70.41710219,196.01,195.93,58.55598479]
[1731004413205,46.64021819,196.1,195.93,58.55598479]
[1731004413206,20.0,195.98,195.93,58.55598479]
[1731004413417,20.0,195.98,195.92,6.0681]
[1731004414001,20.0,195.98,195.93,0.12549]
[1731004414207,20.0,195.96,195.89,74.73448479]
[1731004414814,20.0,195.94,195.87,58.55598479]
[1731004415346,23.776884,195.91,195.84,65.70897646]
[1731004415633,20.0,195.9,195.85,0.12549]
[1731004415809,20.0,195.9,195.84,65.90897646]
[1731004416014,23.776884,195.89,195.84,7.15299167]
[1731004416218,20.0,195.88,195.84,7.15299167]
[1731004416421,20.0,195.88,195.84,65.80897646]
[1731004416723,43.776884,195.92,195.85,0.12549]
[1731004416938,43.776884,195.92,195.84,65.70897646]
[1731004416939,20.0,195.9,195.84,71.02744045]
[1731004417109,20.0,195.9,195.87,46.67468913]
[1731004417302,20.0,195.88,195.85,46.67468913]
[1731004417613,20.0,195.88,195.84,7.15299167]
[1731004417614,43.776884,195.85,195.84,7.15299167]
[1731004417821,43.776884,195.85,195.84,53.8276808]
[1731004418008,43.776884,195.85,195.84,7.15299167]
[1731004418210,43.776884,195.85,195.82,0.7358332]
[1731004418211,23.776884,195.83,195.82,0.7358332]
[1731004418526,43.776884,195.83,195.82,0.7358332]
[1731004418728,20.0,195.83,195.82,47.53601233]
[1731004418937,20.0,195.89,195.82,54.62970696]
[1731004419107,23.776884,195.88,195.85,46.67468913]
[1731004419309,20.0,195.87,195.85,46.67468913]
[1731004419511,20.0,195.87,195.84,0.12549]
[1731004419820,20.0,195.87,195.84,46.80017913]
[1731004420048,20.0,195.87,195.84,0.12549]
[1731004420234,0.1,196.02,195.84,0.12549]
[1731004420235,15.1242,196.28,196.13,58.55598479]
[1731004420531,15.1242,196.28,196.12,0.1]
[1731004420532,61.79888913,196.28,196.16,46.80017913]
[1731004420734,46.67468913,196.24,196.16,7.50917904]
[1731004420932,5.30976524,196.27,196.16,0.12549]
[1731004421112,5.30976524,196.27,196.21,46.67468913]
[1731004421429,46.67468913,196.26,196.19,46.67468913]
[1731004421634,46.67468913,196.26,196.19,0.12549]
[1731004421806,46.67468913,196.26,196.19,46.80017913]
[1731004422304,20.0,196.25,196.19,46.80017913]
[1731004422504,46.67468913,196.27,196.21,0.12549]
[1731004422727,46.67468913,196.26,196.19,46.67468913]
[1731004423112,46.67468913,196.25,196.18,46.67468913]
[1731004423432,46.67468913,196.25,196.19,0.12549]
[1731004423730,20.0,196.24,196.19,46.80017913]
[1731004423935,20.0,196.25,196.19,46.80017913]
[1731004424434,20.0,196.24,196.18,46.80017913]
[1731004425016,20.0,196.25,196.2,46.67468913]
[1731004425220,46.67468913,196.27,196.22,46.67468913]
[1731004425428,46.67468913,196.29,196.22,46.67468913]
[1731004425630,16.5067,196.37,196.21,1.01894071]
[1731004425631,46.67468913,196.28,196.23,1.01876835]
[1731004425810,46.67468913,196.29,196.24,0.12549]
[1731004426134,16.5067,196.37,196.19,46.67468913]
[1731004426135,46.67468913,196.26,196.19,46.67468913]
[1731004426315,20.0,196.25,196.2,46.80017913]
[1731004426515,20.0,196.26,196.21,1.0188356]
[1731004427122,20.0,196.27,196.22,46.80017913]
[1731004427613,20.0,196.27,196.22,0.12549]
[1731004428135,66.67468913,196.27,196.22,0.12549]
[1731004428511,0.2,196.46,196.26,46.67468913]
[1731004428837,46.67468913,196.37,196.32,0.12549]
[1731004429036,46.46673613,196.38,196.32,0.12549]
[1731004429336,46.46673613,196.33,196.27,58.55598479]
[1731004429507,0.1,196.47,196.27,58.55598479]
[1731004429713,46.46673613,196.36,196.29,58.55598479]
[1731004430228,46.46673613,196.34,196.29,58.55598479]
[1731004430432,46.46673613,196.34,196.3,0.12549]
[1731004430736,46.46673613,196.35,196.3,0.12549]
[1731004431114,46.46673613,196.34,196.25,58.55598479]
[1731004431311,46.46673613,196.33,196.25,59.57440608]
[1731004431508,46.46673613,196.4,196.25,59.57440608]
[1731004431509,46.46673613,196.32,196.25,59.57440608]
[1731004431734,46.46673613,196.32,196.26,0.12549]
[1731004431937,46.46673613,196.32,196.25,59.57440608]
[1731004432115,46.46673613,196.33,196.26,0.12549]
[1731004433030,46.46673613,196.4,196.26,0.12549]
[1731004433031,46.46673613,196.32,196.26,0.12549]
[1731004433419,46.46673613,196.32,196.28,0.12549]
[1731004434423,46.46673613,196.33,196.28,0.12549]
[1731004434941,46.46673613,196.31,196.28,0.12549]
[1731004435338,46.46673613,196.3,196.28,0.12549]
[1731004435835,46.46673613,196.29,196.23,58.55598479]
[1731004436027,46.46673613,196.27,196.23,58.55598479]
[1731004436237,46.46673613,196.27,196.24,0.12549]
[1731004436435,46.46673613,196.29,196.26,0.12549]
[1731004437043,46.46673613,196.3,196.26,0.12549]
[1731004437557,46.56673613,196.4,196.26,0.12549]
[1731004437558,46.46673613,196.31,196.26,0.12549]
[1731004437747,23.776884,196.37,196.26,0.12549]
[1731004437748,46.46673613,196.32,196.26,0.12549]
[1731004438041,46.46673613,196.31,196.26,0.12549]
[1731004438617,46.46673613,196.3,196.26,0.12549]
[1731004439726,46.46673613,196.31,196.26,0.12549]
[1731004440242,46.46673613,196.3,196.26,0.12549]
[1731004440541,46.46673613,196.35,196.3,0.12549]
[1731004440726,46.46673613,196.34,196.3,0.12549]
[1731004441743,46.46673613,196.36,196.3,0.12549]
[1731004441950,46.46673613,196.36,196.33,0.12549]
[1731004443146,16.1512,196.45,196.3,58.55598479]
[1731004443147,46.46673613,196.34,196.3,58.55598479]
[1731004443644,46.46673613,196.35,196.31,0.12549]
[1731004443847,46.46673613,196.35,196.34,0.12549]
[1731004444024,46.46673613,196.35,196.31,58.55598479]
[1731004444225,46.46673613,196.34,196.31,58.55598479]
[1731004444422,46.46673613,196.33,196.29,58.55598479]
[1731004444621,46.46673613,196.34,196.29,58.55598479]
[1731004444824,46.46673613,196.4,196.22,0.1]
[1731004444825,46.46673613,196.35,196.34,0.12549]
[1731004445354,46.46673613,196.35,196.32,0.12549]
[1731004446432,46.46673613,196.36,196.32,0.12549]
[1731004447354,28.6006928,196.35,196.32,0.12549]
[1731004447666,28.6006928,196.36,196.32,0.12549]
[1731004448038,28.6006928,196.37,196.32,0.12549]
[1731004448240,28.6006928,196.39,196.36,0.12549]
[1731004448441,28.6006928,196.4,196.38,58.55598479]
[1731004448649,28.6006928,196.4,196.36,58.68147479]
[1731004449143,28.6006928,196.4,196.37,0.12549]
[1731004449342,28.6006928,196.4,196.36,58.55598479]
[1731004449528,28.6006928,196.37,196.34,58.55598479]
[1731004449943,28.6006928,196.37,196.35,0.12549]
[1731004450250,28.6006928,196.37,196.32,58.55598479]
[1731004450449,28.6006928,196.38,196.32,58.55598479]
[1731004450836,28.6006928,196.37,196.32,58.55598479]
[1731004451035,28.6006928,196.39,196.35,58.55598479]
[1731004451364,28.6006928,196.38,196.36,0.12549]
[1731004451650,28.6006928,196.38,196.33,58.55598479]
[1731004452533,28.6006928,196.4,196.33,58.55598479]
[1731004453037,28.6006928,196.41,196.36,0.12549]
[1731004453341,28.6006928,196.37,196.31,58.55598479]
[1731004453551,28.6006928,196.4,196.31,58.55598479]
[1731004453552,28.6006928,196.34,196.31,58.55598479]
[1731004453854,28.6006928,196.35,196.31,58.55598479]